Cogmind - Beta 13 @@@ ROGUE MODE // 2024.05.12 @ 09:24:48 Player: Skrub Result: Destroyed by as-90532 with Assembled Blade Performance ------------- Evolutions (0) 0 Regions Visited (2) 400 Robots Destroyed (22) 110 Value Destroyed (518) 518 Prototype IDs (0) 0 Alien Tech Used (0) 0 Bonus (0) 0 TOTAL SCORE: 1028 Bonus ------- None Cogmind --------- Core Integrity 0/250 Matter 300/300 Energy 82/100 System Corruption 0% Temperature Warm (110) Movement Core (50) Location -10/Mines Parts ------- > --- POWER (1) -------- (None) > --- PROPULSION (2) --- (None) > --- UTILITY (2) ------ Signal Interpreter > --- WEAPON (2) ------- (None) > --- INVENTORY (5) ---- Heat Sink Sensor Array Mining Laser Peak State ------------ > --- POWER ------------ Light Ion Engine > --- PROPULSION ------- Light Treads Light Treads > --- UTILITY ---------- Heat Sink Hacking Suite > --- WEAPON ----------- Beam Cannon Beam Cannon > --- INVENTORY -------- Small Storage Unit Sensor Array Signal Interpreter Welding Torch [Rating: 9] Favorites ----------- Power Light Ion Engine Engine Light Ion Engine Propulsion Light Treads Treads Light Treads Utility Hacking Suite Device Heat Sink Storage Small Storage Unit Processor Signal Interpreter Hackware Hacking Suite Weapon Beam Cannon Energy Gun EM Pulse Gun Energy Cannon Beam Cannon Special Weapon Welding Torch Build | -11 -10 -10 ------- Run | Yrd Mat Min Slots Evolved . | . . . Power . | . . . Propulsion . | . . . Utility . | . . . Weapon . | . . . Parts Attached 13 | 6 6 1 Power 1 | 1 . . Engine 1 | 1 . . Core . | . . . Reactor . | . . . Propulsion 3 | 2 . 1 Treads 3 | 2 . 1 Leg . | . . . Wheel . | . . . Hover . | . . . Flight . | . . . Utility 4 | 1 3 . Device 1 | . 1 . Storage 1 | 1 . . Processor 1 | . 1 . Hackware 1 | . 1 . Protection . | . . . Artifact . | . . . Weapon 5 | 2 3 . Energy Gun 2 | 2 . . Energy Cannon 2 | . 2 . Ballistic Gun . | . . . Ballistic Cannon . | . . . Launcher . | . . . Special Weapon 1 | . 1 . Impact Weapon . | . . . Slashing Weapon . | . . . Piercing Weapon . | . . . Special Melee Weapon . | . . . Unidentified Prototypes . | . . . Parts Lost 7 | . 1 6 Power 1 | . . 1 Propulsion 2 | . . 2 Utility 1 | . . 1 Weapon 3 | . 1 2 Highest Loss Streak 6 | . 1 6 To Critical Strikes . | . . . Average Slot Usage (%) 94 | . 95 83 Engine 13 | . 14 7 Treads 27 | . 28 22 Device 2 | . 2 . Storage 5 | . 6 . Processor 8 | . 7 14 Hackware 8 | . 7 10 Energy Gun 4 | . 4 . Energy Cannon 23 | . 22 28 Naked Turns . | . . . Heaviest Build 15 | 12 15 9 Greatest Support 40 | 40 40 40 Greatest Overweight (x) . | . . . Average Overweight (x) . | . . . Largest Inventory Capacity 8 | 8 8 5 Average Capacity 6 | 6 6 5 Most Carried 5 | 5 5 4 Average Carried 2 | . 2 3 Final Capacity 8 | 8 5 5 Final Carried 4 | . 4 3 Class Distribution -------------------- 100% | Mutant Dominant Class ---------------- Mutant | -10/Materials Mutant | -10/Mines Resources | -11 -10 -10 ----------- Run | Yrd Mat Min Matter Collected 315 | 58 257 . Remotely . | . . . Salvage Created 679 | . 679 . Parts 47 | . 47 . Haulers Intercepted . | . . . Recyclers Shooed . | . . . Parts Field Recycled . | . . . Retrieved Matter . | . . . Parts Self-Destructed . | . . . Prevented . | . . . Kills | -11 -10 -10 ------- Run | Yrd Mat Min Combat Hostiles Destroyed 16 | . 16 . Guns 3 | . 3 . Cannons 9 | . 9 . AOE 2 | . 2 . Classes Destroyed 6 | . 6 . Builder 1 | . 1 . Recycler 1 | . 1 . Operator 1 | . 1 . Watcher 3 | . 3 . Swarmer 6 | . 6 . Grunt 10 | . 10 . Best Kill Streak 3 | . 3 . Combat Bots Only 3 | . 3 . Max Kills in Single Turn 1 | . 1 . Gunslinging . | . . . Exploded 1 | . 1 . Melee . | . . . Uniques/NPCs Destroyed . | . . . Combat | -11 -10 -10 -------- Run | Yrd Mat Min Hostile Shots Fired 89 | . 61 28 Missed 14 | . 9 5 Damage Taken 1158 | . 599 559 Core 267 | . 122 145 Absorbed by Shields . | . . . Core Remaining (%) 100 | 100 . . Volleys Fired 49 | . 45 4 Largest 2 | . 2 2 Hottest 120 | . 120 120 Shots Fired 98 | . 90 8 Gun 42 | . 42 . Cannon 50 | . 42 8 Launcher . | . . . Special 6 | . 6 . Kinetic . | . . . Thermal 56 | . 48 8 Explosive . | . . . Electromagnetic 42 | . 42 . Robot Hit Streak 7 | . 7 2 Robot Miss Streak 6 | . 6 3 Penetration Max . | . . . Secondary Targets . | . . . Shots Hit Robots 48 | . 44 4 Core Hits 26 | . 24 2 Critical Kills 1 | . 1 . Critical Parts Destroyed . | . . . Critical Strikes 2 | . 2 . Meltdown 1 | . 1 . Corrupt 1 | . 1 . Melee Attacks . | . . . Impact . | . . . Slashing . | . . . Piercing . | . . . Sneak Attacks . | . . . Combat Hostiles . | . . . Follow-up Attacks . | . . . Damage Inflicted 974 | . 904 70 Guns 316 | . 316 . Cannons 458 | . 388 70 Explosions 194 | . 194 . Melee . | . . . Ramming . | . . . Kinetic . | . . . Thermal 588 | . 518 70 Explosive . | . . . Electromagnetic 386 | . 386 . Impact . | . . . Slashing . | . . . Piercing . | . . . Highest Corruption . | . . . Average Corruption . | . . . Corruption Purged . | . . . Corruption Blocked . | . . . Overload Shots . | . . . Overflow Damage 31 | . 31 . Projectiles 25 | . 25 . Explosions 6 | . 6 . Melee . | . . . Knockbacks . | . . . Impact . | . . . Kinetic . | . . . Secondary . | . . . Self-Inflicted Damage 85 | . 85 . Shots 2 | . 2 . Rammed . | . . . Targets Rammed . | . . . Kicked . | . . . Crushed . | . . . Highest Temperature 246 | . 246 120 Average Temperature 77 | . 79 63 Received Heat Transfer 330 | . 210 120 Siege Activations . | . . . Robots Corrupted 1 | . 1 . Combat Hostiles 1 | . 1 . Parts Fried 3 | . 3 . Impact Corruptions . | . . . Robots Melted 1 | . 1 . Combat Hostiles 1 | . 1 . Parts Melted 2 | . 2 . Heat Transferred 1162 | . 1014 148 Parts Sabotaged . | . . . Parts Stolen . | . . . Parts Stripped . | . . . Power Chain Reactions 2 | . 2 . Alert | -11 -10 -10 ------- Run | Yrd Mat Min Peak Influence 338 | . 338 46 Initial 46 | . . 46 Average 145 | . 159 35 Maximum Alert Level 1 | . 1 . Low Security (%) 88 | 100 87 100 Level 1 11 | . 12 . Level 2 . | . . . Level 3 . | . . . Level 4 . | . . . Level 5 . | . . . High Security . | . . . Max Security . | . . . Squads Dispatched 5 | . 5 . Investigation 3 | . 3 . Extermination . | . . . Reinforcement 2 | . 2 . Assault . | . . . Garrison . | . . . Intercept . | . . . Searches Triggered . | . . . Construction Impeded . | . . . Haulers Reinforced . | . . . Active Scanning Responses . | . . . Cargo Convoy Interrupts . | . . . Stealth | -11 -10 -10 --------- Run | Yrd Mat Min Distress Signals 3 | . 3 . Communications Jammed . | . . . Distress Signals . | . . . Times Spotted 40 | . 21 19 Peak Tracking Total 17 | . 5 17 Tactical Retreats 4 | . 2 2 Traps | -11 -10 -10 ------- Run | Yrd Mat Min Traps Triggered 3 | . 3 . Indirectly 1 | . 1 . Trap Hack Attempts . | . . . Triggered . | . . . Disarmed . | . . . Reprogrammed . | . . . Reused . | . . . Traps Extracted . | . . . Installed . | . . . Triggered . | . . . Machines | -11 -10 -10 ---------- Run | Yrd Mat Min Machines Disabled 3 | . 3 . Max in Single Turn 1 | . 1 . Machines Repaired . | . . . Machines Dismantled . | . . . Machines Sabotaged . | . . . Overloaded Fab Kills . | . . . Hacking | -11 -10 -10 --------- Run | Yrd Mat Min Machines Accessed 9 | . 9 . Terminals 6 | . 6 . Fabricators . | . . . Repair Stations 1 | . 1 . Recycling Units 2 | . 2 . Scanalyzers . | . . . Garrison Access . | . . . Total Hacks 32 | . 32 . Successful 18 | . 18 . Failed 14 | . 14 . Catastrophic 1 | . 1 . Database Lockouts . | . . . Manual 26 | . 26 . Terminals 26 | . 26 . Fabricators . | . . . Repair Stations 2 | . 2 . Recycling Units 4 | . 4 . Scanalyzers . | . . . Garrison Access . | . . . Terminal Hacks 3 | . 3 . Dispatch Records 2 | . 2 . Recall Reinforcements 1 | . 1 . Fabricator Hacks . | . . . Repair Station Hacks . | . . . Recycling Unit Hacks 1 | . 1 . Report Inventory 1 | . 1 . Scanalyzer . | . . . Garrison Access Hacks . | . . . Unauthorized Hacks 14 | . 14 . Terminals 11 | . 11 . Assimilate 3 | . 3 . Botnet 6 | . 6 . Detonate 1 | . 1 . Operators 1 | . 1 . Fabricators . | . . . Repair Stations 1 | . 1 . Mechanics 1 | . 1 . Recycling Units 2 | . 2 . Reject 1 | . 1 . Recyclers 1 | . 1 . Scanalyzers . | . . . Garrison Access . | . . . Data Cores Recovered . | . . . Used . | . . . Hacking Detections 8 | . 8 . Full Trace Events 2 | . 2 . Feedback Events . | . . . Feedback Blocked . | . . . Robot Schematics Acquired . | . . . Robots Built . | . . . Authchips . | . . . Time . | . . . Total Robot Build Rating . | . . . Part Schematics Acquired . | . . . Parts Built . | . . . Authchips . | . . . Time . | . . . Total Part Build Rating . | . . . Parts Repaired . | . . . Time . | . . . Parts Recycled . | . . . Recycled Matter . | . . . Retrieved Matter . | . . . Retrieved Components . | . . . Parts Scanalyzed . | . . . Part Schematics Acquired . | . . . Parts Damaged . | . . . Bothacking | -11 -10 -10 ------------ Run | Yrd Mat Min Used RIF Installer . | . . . Robots Hacked . | . . . Non-combat . | . . . Combat . | . . . Robot Hacks Applied . | . . . Relay Couplers Released . | . . . Fabnet Peak Effective % . | . . . Robots Rewired . | . . . Allies Hacked . | . . . Hacks Repelled . | . . . Allies | -11 -10 -10 -------- Run | Yrd Mat Min Total Allies . | . . . Largest Group . | . . . Highest-Rated Group . | . . . Highest-Rated Ally . | . . . Total Orders . | . . . Ally Attacks . | . . . Total Damage . | . . . Kills . | . . . Allies Corrupted . | . . . Allies Melted . | . . . Intel | -11 -10 -10 ------- Run | Yrd Mat Min Robot Analysis Total . | . . . Derelict Logs Recovered . | . . . Drone Launches . | . . . Drone Recoveries . | . . . Exploration | -11 -10 -10 ------------- Run | Yrd Mat Min Turns Passed 1391 | 61 1253 77 Spaces Moved 755 | 40 675 40 Core 13 | 13 . . Treads 742 | 27 675 40 Legs . | . . . Wheels . | . . . Hover . | . . . Flight . | . . . Fastest Speed 50 | 50 160 160 Average Speed 158 | 124 160 160 Slowest Speed 160 | 160 160 160 Overloaded Moves . | . . . Propulsion Burnouts . | . . . Robots Hopped . | . . . Cave-ins Triggered . | . . . Exploration Rate (%) 35 | 4 94 9 Regions Visited 2 Branch Regions 1 Pre-discovered Areas . | . . . Known Exits Taken 1 | . 1 . Unknown Exits Taken 1 | 1 . . Scrap Searched . | . . . Spaces Dug . | . . . Terrain Destroyed 4 | . 4 . Melee . | . . . Projectile . | . . . AOE 4 | . 4 . Terrain Rammed . | . . . Walls Destroyed . | . . . Machines Disabled . | . . . Actions | -11 -10 -10 --------- Run | Yrd Mat Min Total 854 | 51 758 45 Wait 18 | . 18 . Move 753 | 39 674 40 Hop . | . . . Pick Up 16 | 6 10 . Fast Attach . | . . . Attach 11 | 6 4 1 Detach 1 | . 1 . Swap 2 | . 2 . Drop 4 | . 4 . Fire 49 | . 45 4 Melee . | . . . Ram . | . . . Kick . | . . . Crush . | . . . Escape Stasis . | . . . Rewire . | . . . Trap . | . . . Miscellaneous . | . . . Route ------- -11/Scrapyard -10/Materials (discovered 4 exits: *Mat x3 / *Min) -10/Mines History --------- Turn | Location | Event 10 | -11/Scrapyard | Discovered new exit (range 15) 62 | -11/Scrapyard | Entered Materials 274 | -10/Materials | Discovered new exit (range 9) 312 | -10/Materials | Build established: Mutant 591 | -10/Materials | Discovered new exit (range 7) 652 | -10/Materials | Identified exit to Materials 758 | -10/Materials | Identified exit to Mines 802 | -10/Materials | Discovered exit to Materials (range 15) 856 | -10/Materials | Discovered exit to Materials (range 8) 1315 | -10/Materials | Entered Mines 1340 | -10/Mines | Assembled infested the area 1366 | -10/Mines | Core integrity fell below 50% 1390 | -10/Mines | Core integrity fell below 20% 1392 | -10/Mines | Destroyed by as-90532 with Assembled Blade Last Messages --------------- 01374_ as-78395 destroyed. 01374_ as-97443 destroyed. 01375_ U-05 Engineer destroyed. 01376_ D-53 Grenadier destroyed. 01376_ R-06 Scavenger collects Structural Scanner. 01378_ Hacking Suite destroyed. 01379_ R-06 Scavenger collects Terrain Scanner. 01381_ The unstable cave ceiling collapses. 01382_ D-53 Grenadier destroyed. 01383_ The unstable cave ceiling collapses. 01384_ R-06 Scavenger collects Mni. Grenade Launcher. 01385_ as-99080 sneak attacks. 01385_ R-06 Scavenger system corrupted by crushing effect. 01385_ R-06 Scavenger destroyed. 01386_ The unstable cave ceiling collapses. 01390_ Lgt. Treads destroyed. 01390_ Beam Cannon destroyed. Map ----- +----------------------------------------------------+ | ?????????????????????????????????????????? | | ?????????????????????????????????????????? | | ?????????????????????????????????????????? | | ?????????????????????????????????????????? | | ?????????????????????????????????????????? | | ?????????????????????????????????????????? | | ?????????????????????????????????????????? | | ?????????????????????????????????????????? | | ??????????????????????????????????? ????? | | ??????????????????????????????????? ????? | | ??????????????????????????????????? ????? | | ??????????????????????????????????? ????? | | ??????????????????????????????????? ????? | | ??????????????????????????????????? ????? | | ??????????????????????????????????# ????? | | ?????????????????????????????????? ????? | | ??????????????????????????????????# #????? | | ??????????????????????????????????# #????? | | ??????????????????????????????????# #????? | | ??????????????????????????????????# #????? | | ?????????????? ???????????????????# #????? | | ??????????????# ???????####???????# #????? | | ??????????????# ??????# ???????# #????? | | ??????????????# ###?## #???????# #????? | | ??????????????# ## #???????# #????? | | ???????????????# a@#???????# #????? | | ????????????????# aa####????# #????? | | ????????????????# a # ####?# #????? | | ????????????????## # ### ##???? | | ?????????????????## ##??? | | ??????????????????## a #??? | | ???????????????????## ] # # ##??? | | ????????????????????### %! #???? | | ?????????????????????# ! #??? | | ?????????????????????## #??? | | ??????????????????????## ##??? | | ???????????????????????#=%##### ## ##???? | | ???????????????????????# |#????###??#????? | | ???????????????????????# ??????????????? | | ???????????????????????# ??????????????? | | ???????????????????????### ??????????????? | | ?????????????????????????? ??????????????? | | ?????????????????????????? ??????????????? | | ?????????????????????????? ??????????????? | | ?????????????????????????? ??????????????? | | ?????????????????????????? ??????????????? | | ?????????????????????????????????????????? | | ?????????????????????????????????????????? | | ?????????????????????????????????????????? | | ?????????????????????????????????????????? | +----------------------------------------------------+ Best States ------------- Heat Dissipation 35 Energy Generation 10 Energy Capacity 125 Matter Stores 300 Matter Capacity 300 Sight Range 16 Terrain Scan Density 10 Evasion (%) 50 Recoil Reduction 2 Offensive Hacking 10 Item Schematics ----------------- None Robot Schematics ------------------ None Fabricated ------------ Nothing Alien Tech Used ----------------- None Achievements -------------- GoHome() It's Just You Power Corrupts Challenges ------------ None Game ------ Seed ProjectionChipSpear Manual? 0 Play Time 00:17:47 Cumulative 3.5 hours Start 2024.05.12 @ 09:08:13 End 2024.05.12 @ 09:24:48 Sessions 1 Manual Loads 0 Difficulty Rogue Special Mode None Game No. 7 Rogue 7 Adventurer 0 Explorer 0 Win Type - Total 0 Types 0/0/0/0/0/0/0/0/0 Lore% 3 Gallery% 7 Achievement% 11 Wizard Run 0 Options --------- Layout 1 ASCII 0 Keyboard 0 Movement Mouse Keybinds 0 Fullscreen 1 Font 24/Smallcaps Map View 50x35 Zoom Use 0% Tactical HUD 1 Map Filters NONE Filters NONE Steam 1 RUN: 2d5c082d-7638-47e5-9dcc-852f71cbc0fa